bitfinex/quotes_BTCUSD_20241027
["timestamp","ask_amount","ask_price","bid_price","bid_amount"]
[1729995743108,0.54803855,67033.0,67032.0,0.00052944]
[1729995745310,0.7971085,67033.0,67032.0,0.00052944]
[1729995746254,0.7871085,67033.0,67032.0,0.00052944]
[1729995747239,0.63603855,67033.0,67032.0,0.00052944]
[1729995747948,0.63603124,67033.0,67032.0,0.00052944]
[1729995749127,0.63602989,67033.0,67032.0,0.00052944]
[1729995749609,0.78708836,67033.0,67032.0,0.00052944]
[1729995750073,0.63602989,67033.0,67032.0,0.00052944]
[1729995750276,0.78708783,67033.0,67032.0,0.00052944]
[1729995751821,0.63602989,67033.0,67032.0,0.00052944]
[1729995753649,0.78708121,67033.0,67032.0,0.00052944]
[1729995754295,0.78708062,67033.0,67032.0,0.00052944]
[1729995754952,0.93758443,67033.0,67032.0,0.00052944]
[1729995755372,0.78653311,67033.0,67032.0,0.00052944]
[1729995757146,0.93757226,67033.0,67032.0,0.00052944]
[1729995757368,0.78652051,67033.0,67032.0,0.00052944]
[1729995759502,0.93756815,67033.0,67032.0,0.00052944]
[1729995759740,0.78652051,67033.0,67032.0,0.00052944]
[1729995761609,0.7725344,67033.0,67032.0,0.00052944]
[1729995761819,0.78652537,67033.0,67032.0,0.00052944]
[1729995762453,0.63602156,67033.0,67032.0,0.00052944]
[1729995763085,0.63602156,67033.0,67032.0,0.00021644]
[1729995764722,0.25256256,67030.0,67029.0,0.001644]
[1729995764943,0.62839707,67030.0,67029.0,0.001644]
[1729995765157,0.63687893,67030.0,67029.0,0.001644]
[1729995765370,0.62289231,67030.0,67029.0,0.001644]
[1729995765852,0.63688012,67030.0,67029.0,0.001644]
[1729995766539,0.63689222,67030.0,67029.0,0.001644]
[1729995767452,0.47166292,67030.0,67029.0,0.001644]
[1729995767671,0.59715471,67030.0,67029.0,0.001644]
[1729995768534,0.76238401,67030.0,67029.0,0.001644]
[1729995768771,0.59715471,67030.0,67029.0,0.001644]
[1729995768999,0.76238453,67030.0,67029.0,0.001644]
[1729995772028,0.63689274,67030.0,67029.0,0.001644]
[1729995775560,0.59118507,67030.0,67029.0,0.001644]
[1729995776662,0.63689282,67030.0,67029.0,0.001644]
[1729995776888,0.63689485,67030.0,67029.0,0.001644]
[1729995777096,0.5911871,67030.0,67029.0,0.001644]
[1729995778152,0.63689533,67030.0,67029.0,0.001644]
[1729995780627,0.62290549,67030.0,67029.0,0.001644]
[1729995780833,0.63689463,67030.0,67029.0,0.001644]
[1729995782319,0.34362384,67030.0,67029.0,0.001644]
[1729995782543,0.49280984,67030.0,67029.0,0.001644]
[1729995783011,0.61560601,67030.0,67029.0,0.001644]
[1729995783229,0.61560667,67030.0,67029.0,0.001644]
[1729995783449,0.4928105,67030.0,67029.0,0.001644]
[1729995785241,0.49281529,67030.0,67029.0,0.001644]
[1729995789976,0.49280741,67030.0,67029.0,0.001644]
[1729995790524,0.47881761,67030.0,67029.0,0.001644]
[1729995790756,0.49280415,67030.0,67029.0,0.001644]
[1729995794323,0.49280395,67030.0,67029.0,0.001644]
[1729995794782,0.49279408,67030.0,67029.0,0.001644]
[1729995798498,0.49279494,67030.0,67029.0,0.001644]
[1729995798709,0.47880774,67030.0,67029.0,0.001644]
[1729995800876,0.49279597,67030.0,67029.0,0.001644]
[1729995803415,0.47880774,67030.0,67029.0,0.001644]
[1729995803666,0.4927991,67030.0,67029.0,0.001644]
[1729995804344,0.49282484,67030.0,67029.0,0.001644]
[1729995810299,0.53854357,67030.0,67029.0,0.001644]
[1729995812018,0.63544357,67030.0,67029.0,0.001644]
[1729995813718,0.63546136,67030.0,67029.0,0.001644]
[1729995814559,0.63546105,67030.0,67029.0,0.001644]
[1729995815188,0.86396234,67030.0,67029.0,0.001644]
[1729995815452,0.76558578,67030.0,67029.0,0.001644]
[1729995815652,0.73576105,67030.0,67029.0,0.001644]
[1729995816113,0.88685627,67030.0,67029.0,0.001644]
[1729995819160,0.73576105,67030.0,67029.0,0.001644]
[1729995820044,0.88685627,67030.0,67029.0,0.001644]
[1729995820474,0.73576105,67030.0,67029.0,0.001644]
[1729995824115,0.88626486,67030.0,67029.0,0.001644]
[1729995827193,0.73576105,67030.0,67029.0,0.001644]
[1729995827422,0.73575171,67030.0,67029.0,0.001644]
[1729995828044,0.73565473,67030.0,67029.0,0.001644]
[1729995831553,0.57049132,67030.0,67029.0,0.001644]
[1729995832814,0.57049227,67030.0,67029.0,0.001644]
[1729995833938,0.49319227,67030.0,67029.0,0.001644]
[1729995836368,0.65834209,67030.0,67029.0,0.001644]
[1729995836727,0.65834403,67030.0,67029.0,0.001644]
[1729995837079,0.80884784,67030.0,67029.0,0.001644]
[1729995838383,0.64369802,67030.0,67029.0,0.001644]
[1729995839884,0.49319421,67030.0,67029.0,0.001644]
[1729995840535,0.39629811,67030.0,67029.0,0.001644]
[1729995840980,0.49467467,67030.0,67029.0,0.001644]
[1729995841340,0.65983463,67030.0,67029.0,0.001644]
[1729995841787,0.6598345,67030.0,67029.0,0.001644]
[1729995845157,0.645846,67030.0,67029.0,0.001644]
[1729995846248,0.65983705,67030.0,67029.0,0.001644]
[1729995846864,0.645846,67030.0,67029.0,0.001644]
[1729995847095,0.65983662,67030.0,67029.0,0.001644]
[1729995849853,0.75486761,67030.0,67029.0,0.001644]
[1729995850257,0.65983662,67030.0,67029.0,0.001644]
[1729995851339,0.65986998,67030.0,67029.0,0.001644]
[1729995854671,0.65987011,67030.0,67029.0,0.001644]
[1729995856119,0.65991052,67030.0,67029.0,0.001644]
[1729995859196,0.67390161,67030.0,67029.0,0.001644]
[1729995860101,0.64591977,67030.0,67029.0,0.001644]
[1729995860802,0.64594555,67030.0,67029.0,0.001644]
[1729995861028,0.65993659,67030.0,67029.0,0.001644]
[1729995861483,0.64594555,67030.0,67029.0,0.001644]
[1729995861706,0.65993582,67030.0,67029.0,0.001644]
[1729995862567,0.67392609,67030.0,67029.0,0.001644]
[1729995862998,0.65993582,67030.0,67029.0,0.001644]
[1729995863663,0.67391894,67030.0,67029.0,0.001644]
[1729995865417,0.67391785,67030.0,67029.0,0.001644]
[1729995865659,0.67385628,67030.0,67029.0,0.001644]
[1729995869168,0.67385726,67030.0,67029.0,0.001644]
[1729995869372,0.6738585,67030.0,67029.0,0.001644]
[1729995870459,0.67386318,67030.0,67029.0,0.001644]
[1729995873468,0.57548662,67030.0,67029.0,0.001644]
[1729995873682,0.56149936,67030.0,67029.0,0.001644]
[1729995876920,0.56149964,67030.0,67029.0,0.001644]
[1729995879674,0.56150981,67030.0,67029.0,0.001644]
[1729995880578,0.56150964,67030.0,67029.0,0.001644]
[1729995883433,0.71256122,67030.0,67029.0,0.001644]
[1729995883645,0.56150964,67030.0,67029.0,0.001644]
[1729995883872,0.71256122,67030.0,67029.0,0.001644]
[1729995884308,0.56151136,67030.0,67029.0,0.001644]
[1729995884529,0.71256294,67030.0,67029.0,0.001644]
[1729995886616,0.56151136,67030.0,67029.0,0.001644]
[1729995887031,0.71256294,67030.0,67029.0,0.007467]
[1729995888085,0.71256522,67030.0,67029.0,0.007467]
[1729995892968,0.56151364,67030.0,67029.0,0.007467]
[1729995893801,0.39630098,67030.0,67029.0,0.007467]
[1729995895503,0.7127389,67030.0,67029.0,0.007467]
[1729995895737,0.7127419,67030.0,67029.0,0.007467]
[1729995899286,0.39630398,67030.0,67029.0,0.007467]
[1729995899736,0.39630591,67030.0,67029.0,0.007467]
[1729995900427,0.71278828,67030.0,67029.0,0.007467]
[1729995902156,0.69879198,67030.0,67029.0,0.007467]
[1729995902374,0.39630608,67030.0,67029.0,0.007467]
[1729995902587,0.66678264,67030.0,67029.0,0.007467]
[1729995905623,0.98328851,67030.0,67029.0,0.007467]
[1729995905859,0.96929204,67030.0,67029.0,0.007467]
[1729995906059,0.98328902,67030.0,67029.0,0.007467]
[1729995907541,0.98328841,67030.0,67029.0,0.007467]
[1729995909431,0.83212172,67030.0,67029.0,0.007467]
[1729995909860,0.84611866,67030.0,67029.0,0.007467]
[1729995910083,0.99728535,67030.0,67029.0,0.007467]
[1729995912091,0.98328839,67030.0,67029.0,0.007467]
[1729995912723,0.8321217,67030.0,67029.0,0.007467]
[1729995912943,0.84611687,67030.0,67029.0,0.007467]
[1729995913809,0.81812474,67030.0,67029.0,0.007467]
[1729995914058,0.84611488,67030.0,67029.0,0.007467]
[1729995916750,0.99728157,67030.0,67029.0,0.007467]
[1729995916953,0.83211981,67030.0,67029.0,0.007467]
[1729995917623,0.9832865,67030.0,67029.0,0.007467]
[1729995918052,0.9972811,67030.0,67029.0,0.007467]
[1729995918702,0.84611441,67030.0,67029.0,0.007467]
[1729995919372,0.9972811,67030.0,67029.0,0.007467]
[1729995921047,0.9832865,67030.0,67029.0,0.007467]
[1729995921463,0.98328718,67030.0,67029.0,0.007467]
[1729995921929,0.83212049,67030.0,67029.0,0.007467]
[1729995922360,0.98327412,67030.0,67029.0,0.007467]
[1729995922578,0.83212049,67030.0,67029.0,0.007467]
[1729995924370,0.81812474,67030.0,67029.0,0.007467]
[1729995924824,0.83211912,67030.0,67029.0,0.007467]
[1729995925036,0.81812474,67030.0,67029.0,0.007467]
[1729995926334,0.96926166,67030.0,67029.0,0.007467]
[1729995926956,0.96921894,67030.0,67029.0,0.007467]
[1729995927179,0.81808687,67030.0,67029.0,0.007467]
[1729995927579,0.98321381,67030.0,67029.0,0.007467]
[1729995929411,0.98321288,67030.0,67029.0,0.007467]
[1729995932846,0.90611288,67030.0,67029.0,0.007467]
[1729995933494,0.90611006,67030.0,67029.0,0.007467]
[1729995936291,0.90607181,67030.0,67029.0,0.007467]
[1729995937052,0.89208123,67030.0,67029.0,0.007467]
[1729995937256,0.90607444,67030.0,67029.0,0.007467]
[1729995939367,0.75496038,67030.0,67029.0,0.007467]
[1729995940588,0.90607444,67030.0,67029.0,0.007467]
[1729995940804,0.90612074,67030.0,67029.0,0.007467]
[1729995943017,0.54055818,67030.0,67029.0,0.007467]
[1729995943218,0.38942201,67030.0,67029.0,0.007467]
[1729995944904,0.38942388,67030.0,67029.0,0.007467]
[1729995945127,0.33522329,67030.0,67029.0,0.007467]
[1729995945368,0.34543254,67030.0,67029.0,0.007467]
[1729995945990,0.49461854,67030.0,67029.0,0.007467]
[1729995948130,0.49461854,67030.0,67029.0,0.001644]
[1729995949901,0.49463117,67030.0,67029.0,0.001644]
[1729995954556,0.49462476,67030.0,67029.0,0.001644]
[1729995959896,0.54034783,67030.0,67029.0,0.001644]
[1729995960129,0.52635275,67030.0,67029.0,0.001644]
[1729995960364,0.54034675,67030.0,67029.0,0.001644]
[1729995962775,0.526347,67030.0,67029.0,0.001644]
[1729995963001,0.54034181,67030.0,67029.0,0.001644]
[1729995966623,0.54034297,67030.0,67029.0,0.001644]
[1729995973873,0.82712356,67030.0,67029.0,0.001644]
[1729995974095,0.85512062,67030.0,67029.0,0.001644]
[1729995974533,0.27556756,67028.0,67027.0,0.001644]
[1729995974745,0.76451637,67028.0,67027.0,0.001644]
[1729995974976,0.77472448,67028.0,67027.0,0.001644]
[1729995976113,0.77469417,67028.0,67027.0,0.001644]
[1729995976543,0.67631761,67028.0,67027.0,0.001644]
[1729995977181,0.77469417,67028.0,67027.0,0.001644]
[1729995980012,0.76069561,67028.0,67027.0,0.001644]
[1729995980228,0.77467605,67028.0,67027.0,0.001644]
[1729995980631,0.77457609,67028.0,67027.0,0.001644]
[1729995981083,0.77455668,67028.0,67027.0,0.001644]
[1729995982386,0.77455407,67028.0,67027.0,0.001644]
[1729995984806,0.78600057,67028.0,67027.0,0.001644]
[1729995986507,0.78599778,67028.0,67027.0,0.001644]
[1729995987796,0.77449962,67028.0,67027.0,0.001644]
[1729995988438,0.74654549,67028.0,67027.0,0.001644]
[1729995989348,0.76052232,67028.0,67027.0,0.001644]
[1729995989779,0.74654549,67028.0,67027.0,0.001644]
[1729995989998,0.77449986,67028.0,67027.0,0.001644]
[1729995990704,0.78847663,67028.0,67027.0,0.001644]
[1729995990913,0.78847663,67028.0,67027.0,0.007467]
[1729995991134,0.77449968,67028.0,67027.0,0.007467]
[1729995991343,0.78847624,67028.0,67027.0,0.007467]
[1729995991561,0.78847597,67028.0,67027.0,0.007467]
[1729995991779,0.8024527,67028.0,67027.0,0.007467]
[1729995995231,0.70407614,67028.0,67027.0,0.007467]
[1729995995464,0.90082926,67028.0,67027.0,0.007467]
[1729995997888,0.8728758,67028.0,67027.0,0.007467]
[1729995998136,0.9008407,67028.0,67027.0,0.007467]
[1729996001155,0.005,67020.0,67019.0,0.22240179]
[1729996001390,0.34859244,67020.0,67019.0,0.22240179]
[1729996001618,0.005,67017.0,67016.0,0.0933]
[1729996001850,0.33461777,67017.0,67016.0,0.242518]
[1729996002052,0.35879423,67017.0,67016.0,0.242518]
[1729996002331,0.005,67016.0,67015.0,0.001642]
[1729996002562,0.46043755,67016.0,67015.0,0.001642]
[1729996002786,0.61942043,67016.0,67015.0,0.001642]
[1729996003012,0.47020243,67016.0,67015.0,0.001642]
[1729996003679,0.4702231,67016.0,67015.0,0.001642]
[1729996004820,0.3583819,67016.0,67015.0,0.001642]
[1729996008176,0.35839941,67016.0,67015.0,0.001642]
[1729996008890,0.35842199,67016.0,67015.0,0.001642]
[1729996009561,0.47028383,67016.0,67015.0,0.001642]
[1729996009767,0.47028255,67016.0,67015.0,0.001642]
[1729996010195,0.35842199,67016.0,67015.0,0.001642]
[1729996012411,0.34442436,67016.0,67015.0,0.001642]
[1729996012642,0.35842209,67016.0,67015.0,0.001642]
[1729996013073,0.35818535,67016.0,67015.0,0.001642]
[1729996017276,0.3582892,67016.0,67015.0,0.001642]
[1729996019693,0.35828846,67016.0,67015.0,0.001642]
[1729996020888,0.19302657,67016.0,67015.0,0.001642]
[1729996021170,0.35837743,67016.0,67015.0,0.001642]
[1729996022998,0.35837615,67016.0,67015.0,0.001642]
[1729996029824,0.34438154,67016.0,67015.0,0.001642]
[1729996030051,0.35838155,67016.0,67015.0,0.001642]
[1729996033172,0.33038153,67016.0,67015.0,0.001642]
[1729996033385,0.34438497,67016.0,67015.0,0.001642]
[1729996033608,0.35838841,67016.0,67015.0,0.001642]
[1729996035667,0.35838841,67016.0,67015.0,0.150862]
[1729996035888,0.35838841,67016.0,67015.0,0.001642]
[1729996036130,0.35921041,67016.0,67015.0,0.001642]
[1729996037041,0.34520622,67016.0,67015.0,0.001642]
[1729996038617,0.34520622,67016.0,67015.0,0.150862]
[1729996038846,0.33120353,67016.0,67015.0,0.150862]
[1729996039088,0.33121074,67016.0,67015.0,0.150862]
[1729996043848,0.33122549,67016.0,67015.0,0.150862]
[1729996048743,0.33122549,67016.0,67015.0,0.001642]
[1729996049201,0.3316447,67016.0,67015.0,0.001642]
[1729996049922,0.3456444,67016.0,67015.0,0.001642]
[1729996050156,0.3456444,67016.0,67015.0,0.150862]
[1729996050808,0.3316447,67016.0,67015.0,0.150862]
[1729996053507,0.34564448,67016.0,67015.0,0.150862]
[1729996054580,0.34564448,67016.0,67015.0,0.001642]
[1729996056728,0.34564472,67016.0,67015.0,0.001642]
[1729996060291,0.34564502,67016.0,67015.0,0.001642]
[1729996061115,0.3316447,67016.0,67015.0,0.001642]
[1729996061317,0.34564515,67016.0,67015.0,0.001642]
[1729996070293,0.3316447,67016.0,67015.0,0.001642]
[1729996071349,0.33165675,67016.0,67015.0,0.001642]
[1729996072414,0.46606373,67016.0,67015.0,0.001642]
[1729996072629,0.33165675,67016.0,67015.0,0.001642]
[1729996074663,0.33123754,67016.0,67015.0,0.001642]
[1729996074888,0.33165675,67016.0,67015.0,0.001642]
[1729996077803,0.33166257,67016.0,67015.0,0.001642]
[1729996080630,0.33124336,67016.0,67015.0,0.001642]
[1729996080829,0.33166257,67016.0,67015.0,0.001642]
[1729996081278,0.46607428,67016.0,67015.0,0.001642]
[1729996081807,0.33166257,67016.0,67015.0,0.001642]
[1729996086949,0.16627316,67016.0,67015.0,0.001642]
[1729996091875,0.4660983,67016.0,67015.0,0.001642]
[1729996096691,0.16627316,67016.0,67015.0,0.001642]
[1729996096904,0.46612147,67016.0,67015.0,0.001642]
[1729996106284,0.33168392,67016.0,67015.0,0.001642]
[1729996106489,0.46610988,67016.0,67015.0,0.001642]
[1729996108450,0.46610973,67016.0,67015.0,0.001642]
[1729996111108,0.4661004,67016.0,67015.0,0.001642]
[1729996113310,0.46610062,67016.0,67015.0,0.001642]
[1729996115702,0.46568023,67016.0,67015.0,0.001642]
[1729996115900,0.46609944,67016.0,67015.0,0.001642]
[1729996120408,0.46610064,67016.0,67015.0,0.001642]
[1729996120677,0.33167711,67016.0,67015.0,0.001642]
[1729996121195,0.46609936,67016.0,67015.0,0.001642]
[1729996121839,0.33167711,67016.0,67015.0,0.001642]
[1729996122047,0.4660976,67016.0,67015.0,0.001642]
[1729996122462,0.3312579,67016.0,67015.0,0.001642]
[1729996122668,0.33167711,67016.0,67015.0,0.001642]
[1729996122877,0.46609828,67016.0,67015.0,0.001642]
[1729996123077,0.33167711,67016.0,67015.0,0.001642]
[1729996123350,0.46609656,67016.0,67015.0,0.001642]
[1729996123758,0.33167711,67016.0,67015.0,0.001642]
[1729996123975,0.46609734,67016.0,67015.0,0.001642]
[1729996124640,0.33167711,67016.0,67015.0,0.001642]
[1729996124863,0.3456751,67016.0,67015.0,0.001642]
[1729996125493,0.48009201,67016.0,67015.0,0.001642]
[1729996127215,0.3456751,67016.0,67015.0,0.001642]
[1729996127431,0.48009226,67016.0,67015.0,0.001642]
[1729996128090,0.4800919,67016.0,67015.0,0.001642]
[1729996129186,0.34567474,67016.0,67015.0,0.001642]
[1729996129645,0.4800917,67016.0,67015.0,0.001642]
[1729996129899,0.49409383,67016.0,67015.0,0.001642]
[1729996131770,0.49409367,67016.0,67015.0,0.001642]
[1729996135326,0.49409356,67016.0,67015.0,0.001642]
[1729996137126,0.48009143,67016.0,67015.0,0.001642]
[1729996139045,0.48009056,67016.0,67015.0,0.001642]
[1729996140031,0.4940925,67016.0,67015.0,0.001642]
[1729996141019,0.48009056,67016.0,67015.0,0.001642]
[1729996141443,0.46608853,67016.0,67015.0,0.001642]
[1729996141778,0.48009048,67016.0,67015.0,0.001642]
[1729996143150,0.49409254,67016.0,67015.0,0.001642]
[1729996145180,0.48009048,67016.0,67015.0,0.001642]
[1729996148940,0.48009065,67016.0,67015.0,0.001642]
[1729996151653,0.48009598,67016.0,67015.0,0.001642]
[1729996156618,0.47967677,67016.0,67015.0,0.001642]
[1729996156832,0.48009598,67016.0,67015.0,0.001642]
[1729996159954,0.48009703,67016.0,67015.0,0.001642]
[1729996160163,0.47967782,67016.0,67015.0,0.001642]
[1729996163645,0.47967797,67016.0,67015.0,0.001642]
[1729996165566,0.47967918,67016.0,67015.0,0.001642]
[1729996167474,0.47967937,67016.0,67015.0,0.001642]
[1729996167972,0.4796793,67016.0,67015.0,0.001642]
[1729996168185,0.47967937,67016.0,67015.0,0.001642]
[1729996170335,0.47968615,67016.0,67015.0,0.001642]
[1729996171377,0.47968608,67016.0,67015.0,0.001642]
[1729996173688,0.47969205,67016.0,67015.0,0.001642]
[1729996175212,0.47969202,67016.0,67015.0,0.001642]
[1729996176773,0.4796921,67016.0,67015.0,0.001642]
[1729996177214,0.34526206,67016.0,67015.0,0.001642]
[1729996179399,0.35926563,67016.0,67015.0,0.001642]
[1729996179609,0.3452667,67016.0,67015.0,0.001642]
[1729996179827,0.35927034,67016.0,67015.0,0.001642]
[1729996181371,0.37327319,67016.0,67015.0,0.001642]
[1729996182652,0.37327216,67016.0,67015.0,0.001642]
[1729996182874,0.35926712,67016.0,67015.0,0.001642]
[1729996185902,0.49368703,67016.0,67015.0,0.001642]
[1729996186341,0.35926712,67016.0,67015.0,0.001642]
[1729996186544,0.35926592,67016.0,67015.0,0.001642]
[1729996187567,0.49368422,67016.0,67015.0,0.001642]
[1729996188010,0.35926592,67016.0,67015.0,0.001642]
[1729996188382,0.49368475,67016.0,67015.0,0.001642]
[1729996188956,0.49366967,67016.0,67015.0,0.001642]
[1729996193759,0.47966802,67016.0,67015.0,0.001642]
[1729996193884,0.49366947,67016.0,67015.0,0.001642]
[1729996195153,0.47966802,67016.0,67015.0,0.001642]
[1729996195368,0.49366928,67016.0,67015.0,0.001642]
[1729996196230,0.49366926,67016.0,67015.0,0.001642]
[1729996197493,0.47966713,67016.0,67015.0,0.001642]
[1729996197715,0.49366833,67016.0,67015.0,0.001642]
[1729996198969,0.49366838,67016.0,67015.0,0.001642]
[1729996199844,0.49366832,67016.0,67015.0,0.001642]
[1729996200672,0.46566593,67016.0,67015.0,0.001642]
[1729996200880,0.49366843,67016.0,67015.0,0.001642]
[1729996204471,0.64288643,67016.0,67015.0,0.001642]
[1729996204679,0.59196843,67016.0,67015.0,0.001642]
[1729996205350,0.45755139,67016.0,67015.0,0.001642]
[1729996207114,0.60676939,67016.0,67015.0,0.001642]
[1729996207338,0.45755166,67016.0,67015.0,0.001642]
[1729996207997,0.59196624,67016.0,67015.0,0.001642]
[1729996208461,0.45755166,67016.0,67015.0,0.001642]
[1729996209758,0.59196607,67016.0,67015.0,0.001642]
[1729996211153,0.59196058,67016.0,67015.0,0.001642]
[1729996212084,0.45754712,67016.0,67015.0,0.001642]
[1729996214105,0.29215556,67016.0,67015.0,0.001642]
[1729996220672,0.19385556,67016.0,67015.0,0.001642]
[1729996225553,0.19385716,67016.0,67015.0,0.001642]
[1729996230722,0.49366425,67016.0,67015.0,0.001642]
[1729996232856,0.47966207,67016.0,67015.0,0.001642]
[1729996233070,0.49366408,67016.0,67015.0,0.001642]
[1729996235024,0.49366808,67016.0,67015.0,0.001642]
[1729996239682,0.49366917,67016.0,67015.0,0.001642]
[1729996240471,0.47966716,67016.0,67015.0,0.001642]
[1729996240678,0.47966848,67016.0,67015.0,0.001642]
[1729996240885,0.47966844,67016.0,67015.0,0.001642]
[1729996241283,0.46566515,67016.0,67015.0,0.001642]
[1729996241523,0.35925494,67016.0,67015.0,0.001642]
[1729996241760,0.3452517,67016.0,67015.0,0.001642]
[1729996242109,0.47967086,67016.0,67015.0,0.001642]
[1729996242526,0.3452517,67016.0,67015.0,0.001642]
[1729996242728,0.47967071,67016.0,67015.0,0.001642]
[1729996244857,0.46566747,67016.0,67015.0,0.001642]
[1729996245075,0.3452515,67016.0,67015.0,0.001642]
[1729996245520,0.47966983,67016.0,67015.0,0.001642]
[1729996248706,0.47966933,67016.0,67015.0,0.001642]
[1729996250664,0.46566679,67016.0,67015.0,0.001642]
[1729996251754,0.47966908,67016.0,67015.0,0.001642]
[1729996252722,0.46566679,67016.0,67015.0,0.001642]
[1729996253420,0.46567295,67016.0,67015.0,0.001642]
[1729996260107,0.33125276,67016.0,67015.0,0.001642]
[1729996260632,0.4656756,67016.0,67015.0,0.001642]
[1729996261771,0.46567753,67016.0,67015.0,0.001642]
[1729996262559,0.33125529,67016.0,67015.0,0.001642]
[1729996263580,0.46567773,67016.0,67015.0,0.001642]
[1729996263783,0.33125529,67016.0,67015.0,0.001642]
[1729996264199,0.46567823,67016.0,67015.0,0.001642]
[1729996271781,0.33125529,67016.0,67015.0,0.001642]
[1729996272193,0.46567833,67016.0,67015.0,0.001642]
[1729996272610,0.33125529,67016.0,67015.0,0.001642]
[1729996272845,0.4656784,67016.0,67015.0,0.001642]
[1729996274184,0.46567805,67016.0,67015.0,0.001642]
[1729996275703,0.71039605,67016.0,67015.0,0.001642]
[1729996275929,0.42675529,67016.0,67015.0,0.001642]
[1729996276823,0.44075752,67016.0,67015.0,0.001642]
[1729996277036,0.45475983,67016.0,67015.0,0.001642]
[1729996277238,0.60397783,67016.0,67015.0,0.001642]
[1729996277441,0.45475983,67016.0,67015.0,0.001642]
[1729996278923,0.58917794,67016.0,67015.0,0.001642]
[1729996280042,0.57517563,67016.0,67015.0,0.001642]
[1729996280495,0.56116671,67016.0,67015.0,0.001642]
[1729996280763,0.57516812,67016.0,67015.0,0.001642]
[1729996281400,0.27535433,67016.0,67015.0,0.001642]
[1729996283800,0.57516675,67016.0,67015.0,0.001642]
[1729996284222,0.56116534,67016.0,67015.0,0.001642]
[1729996284423,0.57516668,67016.0,67015.0,0.001642]
[1729996285527,0.57516893,67016.0,67015.0,0.001642]
[1729996286886,0.44075108,67016.0,67015.0,0.001642]
[1729996287120,0.57516881,67016.0,67015.0,0.001642]
[1729996290918,0.72438681,67016.0,67015.0,0.001642]
[1729996291124,0.57516914,67016.0,67015.0,0.001642]
[1729996291467,0.44075108,67016.0,67015.0,0.001642]
[1729996291674,0.42674974,67016.0,67015.0,0.001642]
[1729996291885,0.44075142,67016.0,67015.0,0.001642]
[1729996292098,0.4547531,67016.0,67015.0,0.001642]
[1729996295507,0.56116691,67016.0,67015.0,0.001642]
[1729996295707,0.45475264,67016.0,67015.0,0.001642]
[1729996295916,0.58916972,67016.0,67015.0,0.001642]
[1729996296342,0.45475179,67016.0,67015.0,0.001642]
[1729996297657,0.58916678,67016.0,67015.0,0.001642]
[1729996298743,0.45475179,67016.0,67015.0,0.001642]
[1729996299157,0.58916945,67016.0,67015.0,0.001642]
[1729996299365,0.58916927,67016.0,67015.0,0.001642]
[1729996299570,0.45475161,67016.0,67015.0,0.001642]
[1729996299796,0.58916791,67016.0,67015.0,0.001642]
[1729996300013,0.58916856,67016.0,67015.0,0.001642]
[1729996300424,0.45475161,67016.0,67015.0,0.001642]
[1729996301354,0.58916953,67016.0,67015.0,0.001642]
[1729996301784,0.575168,67016.0,67015.0,0.001642]
[1729996302005,0.58916945,67016.0,67015.0,0.001642]
[1729996302489,0.58916851,67016.0,67015.0,0.001642]
[1729996303124,0.5751671,67016.0,67015.0,0.001642]
[1729996303373,0.58916851,67016.0,67015.0,0.001642]
[1729996304439,0.45475171,67016.0,67015.0,0.001642]
[1729996304861,0.5891694,67016.0,67015.0,0.001642]
[1729996305734,0.5891702,67016.0,67015.0,0.001642]
[1729996306172,0.57516879,67016.0,67015.0,0.001642]
[1729996307252,0.4407511,67016.0,67015.0,0.001642]
[1729996307947,0.57516848,67016.0,67015.0,0.001642]
[1729996308407,0.4407511,67016.0,67015.0,0.001642]
[1729996308647,0.57516924,67016.0,67015.0,0.001642]
[1729996308882,0.57516912,67016.0,67015.0,0.001642]
[1729996313199,0.57040586,67016.0,67015.0,0.001642]
[1729996314361,0.5844082,67016.0,67015.0,0.001642]
[1729996314984,0.58441046,67016.0,67015.0,0.001642]
[1729996315207,0.57040812,67016.0,67015.0,0.001642]
[1729996317302,0.58441059,67016.0,67015.0,0.001642]
[1729996319750,0.58440955,67016.0,67015.0,0.001642]
[1729996320599,0.48890955,67016.0,67015.0,0.001642]
[1729996321927,0.35449166,67016.0,67015.0,0.001642]
[1729996322147,0.48890955,67016.0,67015.0,0.001642]
[1729996322376,0.34048919,67016.0,67015.0,0.001642]
[1729996322602,0.47490708,67016.0,67015.0,0.001642]
[1729996322827,0.34048772,67016.0,67015.0,0.001642]
[1729996323941,0.47490442,67016.0,67015.0,0.001642]
[1729996324584,0.34048772,67016.0,67015.0,0.001642]
[1729996325454,0.47490442,67016.0,67015.0,0.001642]
[1729996325678,0.34048772,67016.0,67015.0,0.001642]
[1729996325881,0.47490442,67016.0,67015.0,0.001642]
[1729996326083,0.34048772,67016.0,67015.0,0.001642]
[1729996326497,0.47490442,67016.0,67015.0,0.001642]
[1729996326702,0.34048772,67016.0,67015.0,0.001642]
[1729996329070,0.46090191,67016.0,67015.0,0.001642]
[1729996329515,0.32648521,67016.0,67015.0,0.001642]
[1729996332249,0.46080188,67016.0,67015.0,0.001642]
[1729996332467,0.32643003,67016.0,67015.0,0.001642]
[1729996332694,0.46080188,67016.0,67015.0,0.001642]
[1729996334379,0.32643003,67016.0,67015.0,0.001642]
[1729996334796,0.46080188,67016.0,67015.0,0.001642]
[1729996335839,0.32643003,67016.0,67015.0,0.001642]
[1729996336253,0.46080188,67016.0,67015.0,0.001642]
[1729996336664,0.46076101,67016.0,67015.0,0.001642]
[1729996337194,0.32640748,67016.0,67015.0,0.001642]
[1729996337551,0.46076101,67016.0,67015.0,0.001642]
[1729996340874,0.32640748,67016.0,67015.0,0.001642]
[1729996341498,0.46077205,67016.0,67015.0,0.001642]
[1729996343070,0.32641357,67016.0,67015.0,0.001642]
[1729996343295,0.46077205,67016.0,67015.0,0.001642]
[1729996343692,0.16108966,67016.0,67015.0,0.001642]
[1729996344268,0.29544854,67016.0,67015.0,0.001642]
[1729996346895,0.32641407,67016.0,67015.0,0.001642]
[1729996348489,0.17591026,67016.0,67015.0,0.24923856]
[1729996348692,0.1899048,67016.0,67015.0,0.57971179]
[1729996348893,0.02458039,67016.0,67015.0,0.57672778]
[1729996349107,0.02458039,67016.0,67015.0,0.52653265]
[1729996349301,0.01481654,67016.0,67015.0,0.52653265]
[1729996349704,0.000822,67016.0,67015.0,0.52653265]
[1729996351945,0.000822,67016.0,67015.0,0.62653265]